bitfinex-derivatives/quotes_BNBF0:USTF0_20251027
["timestamp","ask_amount","ask_price","bid_price","bid_amount"]
[1761565215126,0.14941233,1166.0,1162.5,0.53622844]
[1761565215422,0.14941233,1166.0,1162.6,0.53622844]
[1761565215628,0.14941233,1166.0,1162.0,0.64045595]
[1761565215821,0.14941233,1166.0,1162.1,0.53593466]
[1761565216025,0.14941233,1166.0,1162.2,0.53593466]
[1761565216221,0.14941233,1166.0,1161.7,1.169]
[1761565216222,0.14941233,1166.0,1162.3,0.53593466]
[1761565216526,0.14941233,1166.0,1162.4,0.53593466]
[1761565216726,0.14941233,1166.0,1162.5,0.53593466]
[1761565216926,0.14941233,1166.0,1162.6,0.53593466]
[1761565217223,0.14941233,1166.0,1162.2,0.64045595]
[1761565217426,0.14941233,1166.0,1162.3,0.53538427]
[1761565217623,0.14941233,1166.0,1161.7,1.169]
[1761565217624,0.14941233,1166.0,1162.4,0.53538427]
[1761565217827,0.14941233,1166.0,1162.5,0.53538427]
[1761565218027,0.14941233,1166.0,1162.6,0.53538427]
[1761565218329,0.14941233,1166.0,1162.7,0.53538427]
[1761565218529,0.14941233,1166.0,1162.8,0.53538427]
[1761565218728,0.14941233,1166.0,1162.2,0.64045595]
[1761565219026,0.14941233,1166.0,1162.3,0.53523127]
[1761565219325,0.14941233,1166.0,1162.4,0.53523127]
[1761565219525,0.14941233,1166.0,1162.5,0.53523127]
[1761565219827,0.14941233,1166.0,1161.7,1.169]
[1761565220028,0.14941233,1166.0,1161.9,0.61894928]
[1761565220230,0.14941233,1166.0,1162.0,0.53547259]
[1761565220425,0.14941233,1166.0,1162.1,0.53547259]
[1761565220726,0.14941233,1166.0,1162.2,0.53547259]
[1761565220925,0.14941233,1166.0,1161.9,0.61894928]
[1761565221130,0.14941233,1166.0,1162.0,0.5355014]
[1761565221326,0.14941233,1166.0,1162.1,0.5355014]
[1761565221530,0.14941233,1166.0,1162.2,0.5355014]
[1761565221826,0.14941233,1166.0,1161.9,0.61894928]
[1761565222129,0.14941233,1166.0,1162.0,0.53548249]
[1761565222330,0.14941233,1166.0,1162.1,0.53548249]
[1761565222530,0.14941233,1166.0,1162.2,0.53548249]
[1761565222726,0.14941233,1166.0,1161.8,0.61894928]
[1761565222727,0.14941233,1166.0,1162.3,0.53548249]
[1761565222929,0.14941233,1166.0,1161.8,0.61894928]
[1761565223128,0.14941233,1166.0,1161.9,0.53546932]
[1761565223327,0.14941233,1166.0,1162.0,0.53546932]
[1761565223530,0.14941233,1166.0,1162.1,0.53546932]
[1761565223830,0.14941233,1166.0,1162.2,0.53546932]
[1761565224028,0.14941233,1166.0,1162.3,0.53546932]
[1761565224226,0.14941233,1166.0,1162.4,0.53546932]
[1761565224430,0.14941233,1166.0,1161.9,0.61894928]
[1761565224630,0.14941233,1166.0,1162.0,0.53535429]
[1761565224832,0.14941233,1166.0,1162.1,0.53535429]
[1761565225128,0.14941233,1166.0,1162.2,0.53535429]
[1761565225328,0.14941233,1166.0,1162.3,0.53535429]
[1761565225527,0.14941233,1166.0,1162.4,0.53535429]
[1761565225728,0.14941233,1166.0,1162.5,0.53535429]
[1761565225932,0.14941233,1166.0,1161.9,0.61894928]
[1761565226128,0.14941233,1166.0,1162.2,0.61894928]
[1761565226332,0.14941233,1166.0,1162.3,1.15409422]
[1761565226532,0.14941233,1166.0,1162.0,0.86592337]
[1761565226533,0.14941233,1166.0,1162.4,0.53514494]
[1761565226729,0.14941233,1166.0,1162.5,0.53514494]
[1761565227030,0.14941233,1166.0,1162.6,0.53514494]
[1761565227233,6.4434218,1168.4,1162.7,0.53514494]
[1761565227433,0.14942067,1166.0,1162.8,0.53514494]
[1761565227729,4.2977337,1168.4,1162.1,0.61894928]
[1761565228034,0.1493886,1166.0,1162.2,0.53475295]
[1761565228233,2.1456881,1168.8,1162.3,0.53475295]
[1761565228434,2.1456881,1169.0,1162.4,0.53475295]
[1761565228629,0.14939886,1166.2,1162.5,0.53475295]
[1761565228933,2.1456881,1169.2,1162.6,0.53475295]
[1761565229229,0.14937001,1166.2,1162.7,0.53475295]
[1761565229430,2.1456881,1167.8,1162.8,0.53475295]
[1761565229630,0.14934629,1166.3,1162.9,0.53475295]
[1761565229831,0.14934629,1166.3,1163.0,0.53418877]
[1761565230032,3.0039634,1168.2,1162.5,0.61894928]
[1761565230229,0.14937834,1166.5,1162.6,0.53405858]
[1761565230533,4.2977337,1168.8,1162.7,0.53405858]
[1761565230731,4.2977337,1168.8,1162.8,0.53405858]
[1761565230930,0.14938283,1166.3,1162.9,0.53405858]
[1761565231132,4.2977337,1168.8,1163.0,0.53405858]
[1761565231333,4.2977337,1168.8,1162.2,0.61894928]
[1761565231535,0.14935142,1166.4,1162.3,1.15306211]
[1761565231730,2.1456881,1168.2,1162.5,0.61894928]
[1761565231935,0.1493636,1166.4,1162.6,0.53411283]
[1761565232234,2.1456881,1168.3,1162.7,0.53411283]
[1761565232434,2.1456881,1168.3,1162.8,0.53411283]
[1761565232634,0.14937642,1166.4,1162.9,0.53411283]
[1761565232836,2.1456881,1168.3,1162.5,0.61894928]
[1761565233036,2.1456881,1168.3,1162.6,0.53388426]
[1761565233236,0.14936295,1166.4,1162.7,0.53388426]
[1761565233532,2.1456881,1168.3,1162.8,0.53388426]
[1761565233732,0.14936937,1166.4,1162.9,0.53388426]
[1761565233931,2.1456881,1168.3,1162.5,0.61894928]
[1761565234134,2.1456881,1168.3,1162.6,0.53402697]
[1761565234332,2.1456881,1168.3,1162.7,0.53402697]
[1761565234534,0.14937578,1166.9,1162.8,0.53402697]
[1761565234735,0.14937578,1166.9,1162.9,0.53402697]
[1761565234932,0.14937578,1166.9,1162.4,0.61894928]
[1761565234933,0.14937578,1166.9,1163.0,0.53402697]
[1761565235138,0.14937578,1166.9,1163.1,0.53402697]
[1761565235337,0.14937578,1166.9,1162.0,0.86592337]
[1761565235338,0.14937578,1166.9,1162.5,0.61894928]
[1761565235535,0.14937578,1166.9,1162.6,1.15328152]
[1761565235836,0.14937578,1166.9,1162.7,0.53433224]
[1761565236035,0.14937578,1166.9,1162.8,0.53433224]
[1761565236336,0.14937578,1166.9,1162.5,0.61894928]
[1761565236536,0.14937578,1166.9,1162.6,0.53468204]
[1761565236731,0.14937578,1166.9,1162.7,0.53468204]
[1761565236936,0.14937578,1166.9,1162.8,0.53468204]
[1761565237235,0.14937578,1166.9,1162.9,0.53468204]
[1761565237436,0.14937578,1166.9,1162.4,0.61894928]
[1761565237636,0.14937578,1166.9,1162.5,1.15383348]
[1761565237932,0.14937578,1166.9,1162.6,0.5348842]
[1761565238143,0.14937578,1166.9,1162.7,0.5348842]
[1761565238344,0.14937578,1166.9,1162.8,0.5348842]
[1761565238643,0.14937578,1166.9,1162.9,0.5348842]
[1761565238844,0.14937578,1166.9,1163.0,0.5348842]
[1761565239044,0.14937578,1166.9,1163.1,0.5348842]
[1761565239246,0.14937578,1166.9,1163.2,0.5348842]
[1761565239544,0.14937578,1166.9,1163.3,0.53483915]
[1761565239743,0.14937578,1166.9,1162.6,0.61894928]
[1761565239941,0.14937578,1166.9,1162.7,0.53483915]
[1761565240146,0.14937578,1166.9,1162.8,0.53483915]
[1761565240346,0.14937578,1166.9,1162.9,0.53483915]
[1761565240543,0.14937578,1166.9,1163.0,0.53483915]
[1761565240848,0.14937578,1166.9,1163.1,0.53483915]
[1761565241143,0.14937578,1166.9,1163.2,0.53483915]
[1761565241348,0.14937578,1166.9,1163.3,0.53483915]
[1761565241643,0.14937578,1166.9,1162.7,0.61894928]
[1761565241848,0.14937578,1166.9,1162.8,0.53530076]
[1761565242046,0.14937578,1166.9,1162.9,0.53530076]
[1761565242250,2.1456881,1168.2,1163.3,0.61894928]
[1761565242549,0.14930208,1167.1,1163.4,0.53530076]
[1761565242744,0.14930208,1167.1,1163.5,0.53530076]
[1761565242944,0.14930208,1167.1,1163.6,0.53530076]
[1761565243148,0.14930208,1167.1,1163.7,0.53530076]
[1761565243350,0.14930208,1167.1,1163.1,0.61894928]
[1761565243550,0.14930208,1167.1,1163.2,0.53465419]
[1761565243845,0.14930208,1167.1,1163.3,0.53465419]
[1761565244044,0.14930208,1167.1,1163.4,0.53465419]
[1761565244248,0.14930208,1167.1,1163.5,0.53465419]
[1761565244450,0.14930208,1167.1,1163.6,0.53465419]
[1761565244650,0.14930208,1167.1,1163.7,0.53465419]
[1761565244951,0.14930208,1167.1,1163.8,0.53465419]
[1761565245152,0.14930208,1167.1,1163.0,0.61894928]
[1761565245346,0.14930208,1167.1,1163.1,0.53470022]
[1761565245548,0.14930208,1167.1,1163.2,0.53470022]
[1761565245750,0.14930208,1167.1,1163.3,0.53470022]
[1761565245952,0.14930208,1167.1,1163.4,0.53470022]
[1761565246149,0.14930208,1167.1,1163.5,0.53470022]
[1761565246353,0.14930208,1167.1,1163.6,0.53470022]
[1761565246549,0.14930208,1167.1,1163.7,0.53470022]
[1761565246753,0.14930208,1167.1,1163.2,0.61894928]
[1761565247054,0.14930208,1167.1,1163.3,1.15384928]
[1761565247254,0.14930208,1167.1,1163.4,0.5349]
[1761565248352,2.1456881,1169.4,1163.6,0.61894928]
[1761565248551,2.1456881,1169.4,1163.7,0.5349]
[1761565248856,0.14927838,1167.3,1163.8,0.5349]
[1761565249056,0.14927838,1167.3,1163.9,0.5349]
[1761565249355,2.1456881,1169.3,1164.0,0.5349]
[1761565249556,0.14923549,1167.4,1164.1,0.5349]
[1761565249856,2.1456881,1169.2,1163.3,0.61894928]
[1761565250051,0.14927262,1166.8,1163.3,0.61894928]
[1761565250255,0.14927262,1166.8,1163.4,0.53597684]
[1761565250453,2.1456881,1167.9,1161.7,1.169]
[1761565250454,2.1456881,1168.7,1163.5,0.53597684]
[1761565250652,0.1493418,1166.8,1163.6,0.53597684]
[1761565250853,0.1493418,1166.8,1163.0,0.61894928]
[1761565251153,2.1456881,1168.7,1163.1,1.15562891]
[1761565251354,0.14930656,1166.8,1163.2,0.53667963]
[1761565251557,0.14930656,1166.8,1163.1,0.61894928]
[1761565251558,2.1456881,1168.7,1163.3,0.53667963]
[1761565251758,2.1456881,1168.7,1163.4,0.53667963]
[1761565251955,0.14931873,1166.8,1163.5,0.53667963]
[1761565252156,2.1456881,1168.2,1163.6,0.53667963]
[1761565252457,3.0039634,1169.4,1163.0,0.61894928]
[1761565252458,0.14933475,1166.6,1163.0,0.61894928]
[1761565252658,0.14933475,1166.6,1163.1,0.5379305]
[1761565252853,2.1456881,1168.4,1163.2,0.5379305]
[1761565253054,0.14933475,1166.8,1163.3,0.5379305]
[1761565253254,2.1456881,1168.3,1163.4,0.5379305]
[1761565253457,2.1456881,1168.3,1163.5,0.5379305]
[1761565253655,0.14932834,1166.8,1163.6,0.5379305]
[1761565253859,2.1456881,1168.2,1163.7,0.5379305]
[1761565254060,2.1456881,1168.6,1163.1,0.61894928]
[1761565254356,0.14931681,1166.8,1163.2,0.53899833]
[1761565254562,2.1456881,1168.5,1163.3,0.53899833]
[1761565254860,2.1456881,1168.5,1163.4,0.53899833]
[1761565254861,0.14932001,1167.3,1163.4,0.53899833]
[1761565255056,0.14932001,1167.3,1163.5,0.53899833]
[1761565255358,0.14932001,1167.3,1163.2,0.61894928]
[1761565255359,0.14932001,1167.3,1163.6,0.53899833]
[1761565255557,0.14932001,1167.3,1163.7,0.53899833]
[1761565255857,0.14932001,1167.3,1163.8,0.53899833]
[1761565256058,0.14932001,1167.3,1163.4,0.61894928]
[1761565256257,0.14932001,1167.3,1163.2,0.86592337]
[1761565256258,0.14932001,1167.3,1163.6,0.61894928]
[1761565256461,0.14932001,1167.3,1163.6,1.15862604]
[1761565256655,0.14932001,1167.3,1163.7,0.53967676]
[1761565256958,0.14932001,1167.3,1163.8,2.04867676]
[1761565257157,0.14932001,1167.3,1163.9,0.53967676]
[1761565257363,2.29500811,1167.3,1163.8,1.509]
[1761565257661,2.29500811,1167.3,1163.9,0.54007669]
[1761565257860,0.14932001,1167.3,1164.0,0.54007669]
[1761565258160,0.14932001,1167.3,1163.8,1.509]
[1761565258362,0.14932001,1167.3,1163.9,0.54053897]
[1761565258561,0.14932001,1167.3,1164.0,0.54053897]
[1761565258760,0.14932001,1167.3,1163.8,1.509]
[1761565259061,0.14932001,1167.3,1163.9,0.54055554]
[1761565259360,0.14932001,1167.3,1164.0,0.54055554]
[1761565259660,2.1456881,1168.0,1164.1,0.54055554]
[1761565259862,2.1456881,1168.8,1164.2,0.54055554]
[1761565260058,0.14928222,1167.3,1164.3,0.54055554]
[1761565260262,2.1456881,1168.9,1164.4,0.54055554]
[1761565260460,2.1456881,1168.9,1163.8,1.509]
[1761565260661,0.14925085,1167.2,1163.9,1.1596159]
[1761565260858,2.1456881,1168.3,1164.0,1.1596159]
[1761565261064,2.1456881,1168.3,1164.1,0.54066662]
[1761565261258,0.14922973,1167.7,1164.2,0.54066662]
[1761565261464,0.14922973,1167.7,1164.3,0.54066662]
[1761565261664,0.14922973,1167.7,1164.4,0.54066662]
[1761565261969,0.14922973,1167.7,1164.5,0.54066662]
[1761565262165,0.14922973,1167.7,1164.6,0.54066662]
[1761565262364,0.14922973,1167.7,1164.1,0.61894928]
[1761565262562,0.14922973,1167.7,1164.2,0.54025136]
[1761565262762,0.14922973,1167.7,1164.1,0.61894928]
[1761565262763,0.14922973,1167.7,1164.3,0.54025136]
[1761565263063,0.14922973,1167.7,1164.4,0.54025136]
[1761565263263,0.14922973,1167.7,1164.5,0.54025136]
[1761565263464,0.14922973,1167.7,1164.6,0.54025136]
[1761565263662,0.14922973,1167.7,1164.7,0.54025136]
[1761565263965,0.14922973,1167.7,1164.0,0.61894928]
[1761565264162,2.1456881,1169.3,1164.2,0.61894928]
[1761565264367,0.14919518,1168.0,1164.4,0.61894928]
[1761565264564,0.14919518,1168.0,1164.5,0.54004261]
[1761565264864,0.14919518,1168.0,1164.6,0.54004261]
[1761565265065,0.14919518,1168.0,1164.7,0.54004261]
[1761565265264,0.14919518,1168.0,1164.8,0.54004261]
[1761565265463,0.14919518,1168.0,1164.2,0.61894928]
[1761565265666,0.14919518,1168.0,1164.3,0.53975295]
[1761565265867,0.14919518,1168.0,1164.4,0.53975295]
[1761565266167,0.14919518,1168.0,1164.5,0.53975295]
[1761565266367,0.14919518,1168.0,1164.6,0.53975295]
[1761565266565,0.14919518,1168.0,1164.7,0.53975295]
[1761565266769,0.14919518,1168.0,1164.8,0.53975295]
[1761565266968,0.14919518,1168.0,1164.3,0.61894928]
[1761565267166,0.14919518,1168.0,1164.4,0.53944088]
[1761565267365,0.14919518,1168.0,1164.5,0.53944088]
[1761565267570,0.14919518,1168.0,1164.6,0.53944088]
[1761565267869,0.14919518,1168.0,1164.7,0.53944088]
[1761565268068,0.14919518,1168.0,1164.8,0.53944088]
[1761565268266,0.14919518,1168.0,1164.2,0.61894928]
[1761565268471,0.14919518,1168.0,1164.3,0.53888526]
[1761565268668,0.14919518,1168.0,1164.4,0.53888526]
[1761565268971,0.14919518,1168.0,1164.5,0.53888526]
[1761565269168,0.14919518,1168.0,1164.6,0.53888526]
[1761565269471,0.14919518,1168.0,1164.7,0.53888526]
[1761565269668,0.14919518,1168.0,1164.2,0.61894928]
[1761565269873,0.14919518,1168.0,1164.3,1.15770551]
[1761565270070,0.14919518,1168.0,1164.4,0.53875623]
[1761565270274,0.14919518,1168.0,1164.5,0.53875623]
[1761565270471,0.14919518,1168.0,1164.6,0.53875623]
[1761565270672,0.14919518,1168.0,1163.9,0.61894928]
[1761565270872,0.14919518,1168.0,1164.0,0.53875088]
[1761565271072,0.14919518,1168.0,1164.1,0.53875088]
[1761565271272,0.14919518,1168.0,1164.2,0.53875088]
[1761565271471,0.14919518,1168.0,1164.3,0.53875088]
[1761565271674,0.14919518,1168.0,1164.4,0.53875088]
[1761565271876,0.14919518,1168.0,1164.5,0.53875088]
[1761565272076,0.14919518,1168.0,1164.6,0.53875088]
[1761565272276,0.14919518,1168.0,1164.0,0.61894928]
[1761565272476,0.14919518,1168.0,1164.1,1.1581448]
[1761565272671,0.14919518,1168.0,1164.2,0.53919552]
[1761565273573,0.14919518,1168.0,1164.3,0.53919552]
[1761565273773,0.14919518,1168.0,1163.8,2.12794928]
[1761565273974,0.14919518,1168.0,1163.9,0.53953425]
[1761565274174,2.29488328,1168.0,1164.0,0.53953425]
[1761565274371,2.29488328,1168.0,1164.1,0.53953425]
[1761565274576,2.29488328,1168.0,1164.2,0.53953425]
[1761565274773,2.29488328,1168.0,1163.8,2.12794928]
[1761565275077,2.29488328,1168.0,1163.9,0.53958116]
[1761565275275,2.29488328,1168.0,1164.0,0.53958116]
[1761565275474,2.29488328,1168.0,1164.1,0.53958116]
[1761565275773,2.29488328,1168.0,1164.2,0.53958116]
[1761565275976,2.29488328,1168.0,1164.3,0.53958116]
[1761565276174,0.14919518,1168.0,1164.4,0.53958116]
[1761565276378,0.14919518,1168.0,1163.8,1.509]
[1761565276577,0.14919518,1168.0,1163.9,0.53968645]
[1761565276778,0.14919518,1168.0,1164.0,0.53968645]
[1761565276975,0.14919518,1168.0,1164.1,0.53968645]
[1761565277174,0.14919518,1168.0,1164.2,0.53968645]
[1761565277377,0.14919518,1168.0,1164.3,0.53968645]
[1761565277574,0.14919518,1168.0,1164.4,0.53968645]
[1761565277778,0.14919518,1168.0,1163.8,1.509]
[1761565277973,0.14919518,1168.0,1163.9,0.539716]
[1761565278177,0.14919518,1168.0,1164.0,0.539716]
[1761565278474,0.14919518,1168.0,1164.1,0.539716]
[1761565278677,0.14919518,1168.0,1164.2,0.539716]
[1761565278881,0.14919518,1168.0,1164.3,0.539716]
[1761565279078,0.14919518,1168.0,1164.4,0.539716]
[1761565279276,0.14919518,1168.0,1164.5,0.539716]
[1761565279479,0.14919518,1168.0,1163.9,0.61894928]
[1761565279680,0.14919518,1168.0,1164.0,0.53973166]
[1761565279878,0.14919518,1168.0,1164.1,0.53973166]
[1761565280076,0.14919518,1168.0,1164.2,0.53973166]
[1761565280281,0.14919518,1168.0,1164.3,0.53973166]
[1761565280481,0.14919518,1168.0,1164.4,0.53973166]
[1761565280681,0.14919518,1168.0,1164.0,0.61894928]
[1761565280682,0.14919518,1168.0,1164.5,0.53973166]
[1761565280978,0.14919518,1168.0,1164.6,0.53973166]
[1761565281178,0.14919518,1168.0,1164.1,0.61894928]
[1761565281378,0.14919518,1168.0,1164.2,0.5398462]
[1761565281581,0.14919518,1168.0,1164.3,0.5398462]
[1761565281778,0.14919518,1168.0,1164.4,0.5398462]
[1761565282077,0.14919518,1168.0,1164.1,0.61894928]
[1761565282078,0.14919518,1168.0,1164.5,0.5398462]
[1761565282279,0.14919518,1168.0,1164.6,0.5398462]
[1761565282476,0.14919518,1168.0,1164.7,0.5398462]
[1761565282682,0.14919518,1168.0,1164.0,0.61894928]
[1761565282880,0.14919518,1168.0,1164.1,0.54011485]
[1761565283084,0.14919518,1168.0,1164.2,0.54011485]
[1761565283280,0.14919518,1168.0,1164.3,0.54011485]
[1761565283484,0.14919518,1168.0,1164.4,0.54011485]
[1761565283779,0.14919518,1168.0,1164.5,0.54011485]
[1761565284080,0.14919518,1168.0,1164.1,0.61894928]
[1761565284081,0.14919518,1168.0,1164.6,0.54011485]
[1761565284383,0.14919518,1168.0,1164.7,0.54011485]
[1761565284580,0.14919518,1168.0,1164.3,0.61894928]
[1761565284785,0.14919518,1168.0,1164.4,0.54052123]
[1761565285083,0.14919518,1168.0,1164.5,0.54052123]
[1761565285280,0.14919518,1168.0,1164.6,0.54052123]
[1761565285483,0.14919518,1168.0,1164.7,0.54052123]
[1761565285780,0.14919518,1168.0,1164.8,0.54052123]
[1761565285982,0.14919518,1168.0,1164.1,0.61894928]
[1761565286184,0.14919518,1168.0,1164.2,0.54089644]
[1761565286384,0.14919518,1168.0,1164.3,0.54089644]
[1761565286582,0.14919518,1168.0,1164.4,0.54089644]
[1761565286780,0.14919518,1168.0,1164.5,0.54089644]
[1761565286982,0.14919518,1168.0,1164.6,0.54089644]
[1761565287184,0.14919518,1168.0,1164.7,0.54089644]
[1761565287385,0.14919518,1168.0,1164.8,0.54089644]
[1761565287681,0.14919518,1168.0,1164.1,0.61894928]
[1761565287886,0.14919518,1168.0,1164.2,0.54126251]
[1761565288085,0.14919518,1168.0,1164.3,0.54126251]
[1761565288385,0.14919518,1168.0,1164.4,1.16021179]
[1761565288582,0.14919518,1168.0,1164.5,0.54126251]
[1761565288783,0.14919518,1168.0,1164.6,0.54126251]
[1761565288982,0.14919518,1168.0,1164.7,0.54126251]
[1761565289182,0.14919518,1168.0,1164.1,0.61894928]
[1761565289183,0.14919518,1168.0,1164.8,0.54143325]
[1761565289384,0.14919518,1168.0,1164.9,0.54143325]
[1761565289586,0.14919518,1168.0,1164.4,0.61894928]
[1761565289784,0.14919518,1168.0,1164.5,0.54141058]
[1761565289986,0.14919518,1168.0,1164.6,0.54141058]
[1761565290186,0.14919518,1168.0,1164.7,0.54141058]
[1761565290384,0.14919518,1168.0,1164.8,0.54141058]
[1761565290586,0.14919518,1168.0,1164.9,0.54141058]
[1761565290786,0.14919518,1168.0,1164.3,0.61894928]
[1761565291087,0.14919518,1168.0,1164.4,1.16048648]
[1761565291285,0.14919518,1168.0,1164.5,0.5415372]
[1761565291484,0.14919518,1168.0,1164.6,0.5415372]
[1761565291786,0.14919518,1168.0,1164.7,0.5415372]
[1761565291986,0.14919518,1168.0,1164.8,0.5415372]
[1761565292184,3.0039634,1169.1,1164.9,0.5415372]
[1761565292389,0.14917408,1168.3,1165.0,0.5415372]
[1761565292585,2.1456881,1168.4,1165.1,0.5415372]
[1761565292785,2.1456881,1168.8,1165.2,0.5415372]
[1761565292989,0.14916513,1168.4,1165.3,0.5415372]
[1761565293190,0.14916513,1168.4,1165.4,0.5415372]
[1761565293391,3.0039634,1169.2,1165.5,0.54039667]
[1761565293585,0.14910377,1169.1,1165.6,0.54039667]
[1761565293789,0.14910377,1169.1,1165.7,0.54039667]
[1761565293990,0.14910377,1169.1,1165.0,0.61894928]
[1761565293991,0.14910377,1169.1,1165.8,0.54039667]
[1761565294289,3.0039634,1170.4,1165.9,0.53946168]
[1761565294486,0.14902555,1169.3,1166.0,0.53946168]
[1761565294786,0.14902555,1169.3,1166.1,0.53946168]
[1761565294986,0.14902555,1169.3,1166.2,0.53946168]
[1761565295186,0.14902555,1169.3,1165.5,0.61894928]
[1761565295387,3.0039634,1170.8,1165.6,1.15787744]
[1761565295591,0.14901694,1168.9,1165.7,0.53892816]
[1761565295889,2.1456881,1169.3,1165.8,0.53892816]
[1761565296090,0.14907631,1169.0,1165.9,0.53892816]
[1761565296286,0.14907631,1169.0,1166.0,0.53892816]
[1761565296487,0.14907631,1169.0,1165.3,0.61894928]
[1761565296787,0.14907631,1169.0,1165.5,0.61894928]
[1761565296987,0.14907631,1169.0,1165.6,0.53885358]
[1761565297192,0.14907631,1169.0,1165.7,0.53885358]
[1761565297389,2.1456881,1170.5,1165.8,0.53885358]
[1761565297587,2.1456881,1170.5,1165.5,0.61894928]
[1761565297588,0.14902811,1169.2,1165.9,0.53885358]
[1761565297792,0.14902811,1169.2,1166.0,0.53885358]
[1761565298091,2.1456881,1170.4,1165.5,0.61894928]
[1761565298292,0.14904119,1168.9,1165.6,0.53831758]
[1761565298493,2.1456881,1169.1,1165.1,0.61894928]
[1761565298787,0.14910569,1168.7,1165.1,0.61894928]
[1761565298992,0.14910569,1168.7,1165.2,0.53861397]
[1761565299188,0.14910569,1168.7,1165.3,0.53861397]
[1761565299392,0.14910569,1168.7,1164.8,0.61894928]
[1761565299589,0.14910569,1168.7,1164.9,0.5389398]
[1761565299787,0.14910569,1168.7,1164.6,0.86592337]
[1761565299788,0.14910569,1168.7,1165.0,0.5389398]
[1761565299992,0.14910569,1168.7,1165.1,0.5389398]
[1761565300193,0.14910569,1168.7,1165.2,0.5389398]
[1761565300391,0.14910569,1168.7,1164.6,0.61894928]
[1761565300592,0.14910569,1168.7,1164.7,0.53924467]
[1761565300789,0.14910569,1168.7,1164.8,0.53924467]
[1761565300993,0.14910569,1168.7,1164.9,0.53924467]
[1761565301293,0.14910569,1168.7,1165.0,0.53924467]
[1761565301492,0.14910569,1168.7,1165.1,0.53924467]
[1761565301693,0.14910569,1168.7,1165.2,0.53924467]
[1761565301892,0.14910569,1168.7,1164.5,0.61894928]
[1761565302091,0.14910569,1168.7,1164.6,0.53931021]
[1761565302292,0.14910569,1168.7,1164.7,0.53931021]
[1761565302591,0.14910569,1168.7,1164.8,0.53931021]
[1761565302795,0.14910569,1168.7,1164.9,0.53931021]
[1761565302998,0.14910569,1168.7,1165.0,0.53931021]
[1761565303295,0.14910569,1168.7,1165.1,0.53931021]
[1761565303495,0.14910569,1168.7,1165.2,0.53931021]
[1761565303795,0.14910569,1168.7,1165.3,0.53931021]
[1761565303996,0.14910569,1168.7,1164.8,0.61894928]
[1761565304188,0.14910569,1168.7,1164.9,0.53915605]
[1761565304394,0.14910569,1168.7,1165.0,0.53915605]
[1761565304592,0.14910569,1168.7,1164.5,0.86592337]
[1761565304593,0.14910569,1168.7,1165.1,0.53915605]
[1761565304795,0.14910569,1168.7,1165.2,0.53915605]
[1761565304995,0.14910569,1168.7,1164.8,0.61894928]
[1761565305395,2.1456881,1168.6,1164.8,0.61894928]
[1761565305891,0.14910569,1168.7,1164.9,0.539324]
[1761565306094,0.14910569,1168.7,1165.0,0.539324]
[1761565306292,0.14910569,1168.7,1165.1,0.539324]
[1761565306495,0.14910569,1168.7,1165.2,0.539324]
[1761565306696,0.14910569,1168.7,1164.7,0.61894928]
[1761565306892,2.29479379,1168.7,1164.7,0.61894928]
[1761565307394,2.29479379,1168.7,1164.7,1.1583474]
[1761565307598,2.29479379,1168.7,1164.8,0.53939812]
[1761565307798,2.29479379,1168.7,1164.9,0.53939812]
[1761565307996,2.1456881,1168.5,1164.9,1.1583474]
[1761565308196,2.1456881,1168.5,1165.0,0.53939812]
[1761565308400,2.1456881,1168.5,1165.1,1.79239812]
[1761565308600,2.1456881,1168.5,1165.2,0.53939812]
[1761565308901,2.1456881,1168.5,1165.1,1.253]
[1761565309300,2.1456881,1168.5,1165.2,0.53962565]
[1761565309496,0.14910569,1168.7,1165.3,0.53965503]
[1761565309795,0.14910569,1168.7,1165.1,1.253]
[1761565310200,0.14910569,1168.7,1165.2,0.53982998]
[1761565310401,0.14910569,1168.7,1165.1,1.253]
[1761565310696,0.14910569,1168.7,1165.2,0.53976769]
[1761565310896,0.14910569,1168.7,1165.1,1.253]
[1761565311100,0.14910569,1168.7,1165.2,0.53978444]
[1761565311300,0.14910569,1168.7,1165.3,1.15873372]
[1761565311502,2.1456881,1169.1,1165.4,1.15873372]
[1761565311702,0.1490993,1169.0,1165.5,0.53978444]
[1761565311997,3.0039634,1169.5,1165.6,0.53978444]
[1761565312201,0.14907694,1169.2,1165.7,0.53978444]
[1761565312399,0.14907694,1169.2,1165.8,0.53978444]
[1761565312597,0.14907694,1169.2,1165.9,0.53978444]
[1761565312795,0.14907694,1169.2,1166.0,0.53978444]
[1761565312998,0.14907694,1169.2,1166.1,0.53978444]
[1761565313196,0.14907694,1169.2,1165.5,0.61894928]
[1761565313400,0.14907694,1169.2,1165.6,0.53857376]
[1761565313602,0.14907694,1169.2,1165.7,0.53857376]
[1761565313800,0.14907694,1169.2,1165.3,0.86592337]
[1761565313801,0.14907694,1169.2,1165.8,0.53857376]
[1761565313998,0.14907694,1169.2,1165.3,0.61894928]
[1761565314200,0.14907694,1169.2,1165.4,0.53894072]
[1761565314400,0.14907694,1169.2,1165.3,0.61894928]
[1761565314401,0.14907694,1169.2,1165.5,0.53894072]
[1761565314599,0.14907694,1169.2,1165.6,0.53894072]
[1761565314904,0.14907694,1169.2,1165.3,0.61894928]
[1761565314905,0.14907694,1169.2,1165.7,0.53894072]
[1761565315204,0.14907694,1169.2,1165.3,0.61894928]
[1761565315499,2.29476504,1169.2,1165.4,0.53923823]
[1761565315700,2.29476504,1169.2,1165.5,0.53923823]
[1761565316003,0.14907694,1169.2,1165.6,0.53923823]
[1761565316201,2.1456881,1171.7,1166.2,0.61894928]
[1761565316404,2.1456881,1171.3,1166.8,0.61894928]
[1761565316600,0.14883657,1171.4,1167.5,0.61894928]
[1761565316804,0.14883657,1171.4,1165.1,1.253]
[1761565316805,0.14883657,1171.4,1167.6,0.53923823]
[1761565317001,0.14883657,1171.4,1168.0,0.61894928]
[1761565317200,0.14883657,1171.4,1167.5,0.61894928]
[1761565317403,0.14883657,1171.4,1167.6,1.15296715]
[1761565317600,0.14883657,1171.4,1167.7,0.53401787]
[1761565317905,0.14883657,1171.4,1167.8,0.53401787]
[1761565318204,0.14883657,1171.4,1167.9,0.53401787]
[1761565318400,0.14883657,1171.4,1167.3,0.61894928]
[1761565318604,0.14883657,1171.4,1167.4,0.53290098]
[1761565318800,0.14883657,1171.4,1167.5,0.53290098]
[1761565319102,0.14883657,1171.4,1167.6,0.53290098]
[1761565319300,0.14883657,1171.4,1166.6,0.86592337]
[1761565319301,2.1456881,1173.6,1167.7,0.53290098]
[1761565319500,0.14874624,1171.3,1167.8,0.53290098]
[1761565319705,0.14874624,1171.3,1167.9,0.53290098]
[1761565319905,9.022062,1173.7,1168.0,0.53290098]
[1761565320101,0.14872716,1171.3,1167.4,0.61894928]
[1761565320300,0.14872716,1171.3,1167.5,0.53194265]
[1761565320504,2.1456881,1173.5,1167.6,0.53194265]
[1761565320705,0.14871318,1171.6,1167.7,1.15089193]
[1761565321006,2.1456881,1173.6,1168.0,0.61894928]
[1761565321201,0.14873161,1171.6,1168.1,0.53194265]
[1761565321406,0.14873161,1171.6,1168.2,0.53194265]
[1761565321601,2.1456881,1173.6,1164.7,2.1648084]
[1761565321602,2.1456881,1173.4,1168.3,0.52988458]